fUST/lending_fUST_20250326
["ID","MTS","AMOUNT","RATE_DAILY","PERIOD"]
[356692893,1742974168910,-500.0,0.00021907,2]
[356692894,1742974168931,-500.0,0.00021907,2]
[356692895,1742974168952,-500.0,0.00021907,2]
[356692896,1742974168974,-500.0,0.00021907,2]
[356692897,1742974168995,-500.0,0.00021907,2]
[356692898,1742974169017,-500.0,0.00021907,2]
[356692899,1742974169038,-547.00683184,0.00021907,2]
[356692900,1742974169059,-500.0,0.00021907,2]
[356692901,1742974169079,-513.04513025,0.00021907,2]
[356692902,1742974169100,-525.42725831,0.00021907,2]
[356692903,1742974169121,-500.0,0.00021907,2]
[356692904,1742974169144,-500.0,0.00021907,2]
[356692905,1742974169165,-151.0,0.00021918,2]
[356692906,1742974169187,-151.0,0.00021918,2]
[356692907,1742974169208,-151.0,0.00021918,2]
[356692908,1742974169229,-236.69841,0.00021918,2]
[356692909,1742974169250,-12477.62,0.00021942,2]
[356692910,1742974169272,-191.39,0.00021942,2]
[356692911,1742974169293,-500.0,0.00021942,2]
[356692912,1742974169315,-500.0,0.00021942,2]
[356692913,1742974169339,-520.70022056,0.00021942,2]
[356692914,1742974169361,-500.0,0.00021942,2]
[356692915,1742974169384,-500.0,0.00021942,2]
[356692916,1742974169406,-500.0,0.00021942,2]
[356692917,1742974169429,-500.0,0.00021942,2]
[356692918,1742974169452,-500.0,0.00021942,2]
[356692919,1742974169474,-500.0,0.00021942,2]
[356692920,1742974169495,-500.0,0.00021942,2]
[356692921,1742974169517,-6064.69,0.00021942,2]
[356692922,1742974169540,-500.0,0.00021942,2]
[356692923,1742974169563,-74.36492753,0.00021942,2]
[356692928,1742974205246,1147.68,8e-05,2]
[356693009,1742974246724,-194.21753166,0.0002054,2]
[356693010,1742974246735,-515.21676361,0.0002064,2]
[356693011,1742974246744,-311.33539688,0.0002064,2]
[356693012,1742974246838,-188.66460312,0.0002064,2]
[356693013,1742974246848,-110.7368664,0.0002064,2]
[356693020,1742975225245,-4310.50682726,0.00018058,2]
[356693021,1742975225270,-160.0,0.00018227,2]
[356693022,1742975225295,-500.0,0.0001824,2]
[356693023,1742975225320,-500.0,0.0001824,2]
[356693024,1742975225343,-2073.8742679,0.00018336,2]
[356693025,1742975225368,-300.0,0.00018998,2]
[356693026,1742975225392,-239.80269622,0.00018999,2]
[356693027,1742975225418,-500.0,0.00018999,2]
[356693028,1742975225447,-500.0,0.00018999,2]
[356693029,1742975225474,-81.05607753,0.00018999,2]
[356693030,1742975240092,-418.94392247,0.00018999,2]
[356693031,1742975240116,-500.0,0.00018999,2]
[356693032,1742975240141,-45.13901703,0.00018999,2]
[356693033,1742975252305,-588.37932862,0.00018999,2]
[356693034,1742975252330,-500.0,0.00018999,2]
[356693035,1742975252354,-266.60706148,0.00018999,2]
[356693036,1742975252382,-500.0,0.00018999,2]
[356693037,1742975252406,-500.0,0.00018999,2]
[356693038,1742975252430,-500.0,0.00018999,2]
[356693039,1742975252453,-500.0,0.00018999,2]
[356693040,1742975252476,-500.0,0.00018999,2]
[356693041,1742975252499,-500.0,0.00018999,2]
[356693042,1742975252523,-469.84364483,0.00018999,2]
[356693044,1742975361083,-300.0,0.00018998,2]
[356693045,1742975361106,-459.56128847,0.00018999,2]
[356693046,1742975361128,-500.0,0.00018999,2]
[356693047,1742975361151,-500.0,0.00018999,2]
[356693048,1742975361172,-685.59,0.00018999,2]
[356693049,1742975361193,-1000.0,0.00018999,7]
[356693050,1742975361216,-30.15635517,0.00018999,2]
[356693051,1742975361237,-40867.75292343,0.00019,2]
[356693052,1742975361258,-500.0,0.00019178,2]
[356693053,1742975361279,-152.10120591,0.00019178,2]
[356693054,1742975361300,-415.16752896,0.00019273,2]
[356693055,1742975361322,-500.0,0.00019273,2]
[356693056,1742975361344,-685.59,0.00019273,2]
[356693057,1742975361365,-1000.0,0.00019273,7]
[356693058,1742975361387,-335.21294492,0.00019533,2]
[356693059,1742975361409,-685.59,0.00019547,2]
[356693060,1742975361435,-427.44567198,0.00019572,2]
[356693061,1742975361456,-500.0,0.00019573,2]
[356693062,1742975361478,-502.98550699,0.00019573,2]
[356693063,1742975361499,-500.0,0.00019573,2]
[356693064,1742975361520,-500.0,0.00019573,2]
[356693065,1742975361541,-500.0,0.00019573,2]
[356693066,1742975361562,-500.0,0.00019573,2]
[356693067,1742975361582,-500.0,0.00019573,2]
[356693068,1742975361603,-500.0,0.00019573,2]
[356693069,1742975361623,-500.0,0.00019573,2]
[356693070,1742975361645,-500.0,0.00019573,2]
[356693071,1742975361666,-500.0,0.00019573,2]
[356693072,1742975361687,-447.95004427,0.00019573,2]
[356693073,1742975361708,-500.0,0.00019573,2]
[356693074,1742975361729,-500.0,0.00019573,2]
[356693075,1742975361893,-504.11525001,0.00019573,2]
[356693076,1742975361914,-151.0,0.00019578,2]
[356693077,1742975361935,-302.0,0.00019578,2]
[356693078,1742975361961,-600.0,0.00019578,2]
[356693079,1742975361982,-164.83074132,0.00019589,2]
[356693080,1742975362004,-500.0,0.00019589,2]
[356693081,1742975362027,-500.0,0.00019589,2]
[356693082,1742975362048,-500.0,0.00019589,2]
[356693083,1742975362070,-500.0,0.00019589,2]
[356693084,1742975362092,-500.0,0.00019589,2]
[356693085,1742975362113,-500.0,0.00019589,2]
[356693086,1742975362135,-500.0,0.00019589,2]
[356693087,1742975362156,-5559.29,0.00019589,2]
[356693088,1742975362177,-500.0,0.00019589,2]
[356693089,1742975362199,-500.0,0.00019589,2]
[356693090,1742975362221,-827.61,0.00019589,2]
[356693091,1742975362243,-500.0,0.00019589,2]
[356693092,1742975362263,-500.0,0.00019589,2]
[356693093,1742975362284,-500.0,0.00019589,2]
[356693094,1742975362305,-11437.82,0.00019589,2]
[356693095,1742975362327,-500.0,0.00019589,2]
[356693096,1742975362348,-1006.79,0.00019589,2]
[356693097,1742975362370,-500.0,0.00019589,2]
[356693098,1742975362393,-500.0,0.00019589,2]
[356693099,1742975362414,-352.83,0.00019589,2]
[356693100,1742975362434,-511.34461549,0.00019589,2]
[356693101,1742975362455,-24900.0,0.0001959,2]
[356693102,1742975362476,-180.91,0.00019623,3]
[356693103,1742975362497,-622.2,0.00019633,2]
[356693104,1742975362518,-645.2214,0.00019688,2]
[356693105,1742975362539,-669.0945918,0.00019743,2]
[356693106,1742975362559,-693.8510917,0.00019798,2]
[356693107,1742975362581,-685.59,0.00019821,2]
[356693108,1742975362601,-719.52358209,0.00019853,2]
[356693109,1742975362622,-542.76,0.00019853,3]
[356693110,1742975362644,-232.26,0.00019863,2]
[356693111,1742975362665,-500.0,0.00019863,2]
[356693112,1742975362686,-500.0,0.00019863,2]
[356693113,1742975362707,-500.0,0.00019863,2]
[356693114,1742975362729,-500.0,0.00019863,2]
[356693115,1742975362750,-500.0,0.00019863,2]
[356693116,1742975362771,-500.0,0.00019863,2]
[356693117,1742975362793,-5559.29,0.00019863,2]
[356693118,1742975362814,-500.0,0.00019863,2]
[356693119,1742975362836,-371.57732369,0.00019863,2]
[356693120,1742975362858,-827.61,0.00019863,2]
[356693121,1742975362879,-500.0,0.00019863,2]
[356693122,1742975362902,-500.0,0.00019863,2]
[356693123,1742975362923,-11437.82,0.00019863,2]
[356693124,1742975362962,-500.0,0.00019863,2]
[356693125,1742975362987,-500.0,0.00019863,2]
[356693126,1742975363009,-1006.79,0.00019863,2]
[356693127,1742975363033,-500.0,0.00019863,2]
[356693128,1742975363056,-500.0,0.00019863,2]
[356693129,1742975363077,-151.0,0.00019863,2]
[356693130,1742975363098,-746.14595463,0.00019908,2]
[356693131,1742975363120,-773.75335495,0.00019963,2]
[356693132,1742975363142,-19297.97969335,0.0002,2]
[356693133,1742975363164,-151.0,0.0002,2]
[356693134,1742975363186,-802.38222908,0.00020018,2]
[356693135,1742975363208,-832.07037156,0.00020073,2]
[356693136,1742975363231,-685.59,0.00020095,2]
[356693137,1742975363253,-245.3015481,0.00020126,2]
[356693138,1742975363276,-862.8569753,0.00020128,2]
[356693139,1742975363299,-500.0,0.00020137,2]
[356693140,1742975363322,-500.0,0.00020137,2]
[356693141,1742975363345,-609.2031336,0.00020137,2]
[356693142,1742975363368,-500.0,0.00020137,2]
[356693143,1742975363391,-528.15,0.00020137,2]
[356693144,1742975363413,-500.0,0.00020137,2]
[356693145,1742975363437,-5559.29,0.00020137,2]
[356693146,1742975363459,-500.0,0.00020137,2]
[356693147,1742975363483,-827.61,0.00020137,2]
[356693148,1742975363514,-330.56,0.00020137,2]
[356693149,1742975363539,-500.0,0.00020137,2]
[356693150,1742975363561,-11437.82,0.00020137,2]
[356693151,1742975363802,-500.0,0.00020137,2]
[356693152,1742975363824,-500.0,0.00020137,2]
[356693153,1742975363846,-1006.79,0.00020137,2]
[356693154,1742975363871,-500.0,0.00020137,2]
[356693155,1742975363895,-500.0,0.00020137,2]
[356693156,1742975363917,-151.0,0.00020137,2]
[356693157,1742975363940,-834.83451184,0.00020299,2]
[356693158,1742975363965,-418.40181814,0.00020319,2]
[356693159,1742975363987,-685.59,0.00020369,2]
[356693160,1742975364010,-500.0,0.00020411,2]
[356693161,1742975364036,-500.0,0.00020411,2]
[356693162,1742975364058,-500.0,0.00020411,2]
[356693163,1742975364080,-500.0,0.00020411,2]
[356693164,1742975364103,-5559.29,0.00020411,2]
[356693165,1742975364126,-500.0,0.00020411,2]
[356693166,1742975364149,-827.61,0.00020411,2]
[356693167,1742975364171,-151.0,0.00020411,2]
[356693168,1742975364193,-500.0,0.00020411,2]
[356693169,1742975364214,-151.0,0.00020411,2]
[356693170,1742975364235,-11437.82,0.00020411,2]
[356693171,1742975364256,-645.31,0.00020411,2]
[356693172,1742975364277,-500.0,0.00020411,2]
[356693173,1742975364299,-1006.79,0.00020411,2]
[356693174,1742975364321,-500.0,0.00020411,2]
[356693175,1742975364344,-500.0,0.00020411,2]
[356693176,1742975364365,-219.55825,0.00020411,2]
[356693177,1742975364387,-335.21294488,0.00020481,2]
[356693178,1742975364408,-5000.0,0.0002054,2]
[356693179,1742975364429,-500.0,0.0002064,2]
[356693180,1742975364450,-500.0,0.0002064,2]
[356693181,1742975364471,-583.02,0.0002064,2]
[356693182,1742975364493,-513.45240173,0.0002064,2]
[356693183,1742975364514,-500.0,0.0002064,2]
[356693184,1742975364536,-500.0,0.0002064,2]
[356693185,1742975364557,-500.0,0.0002064,2]
[356693186,1742975364579,-511.87091639,0.0002064,2]
[356693187,1742975364601,-500.0,0.0002064,2]
[356693188,1742975364622,-500.0,0.0002064,2]
[356693189,1742975364643,-500.0,0.0002064,2]
[356693190,1742975364664,-500.0,0.0002064,2]
[356693191,1742975364685,-500.0,0.0002064,2]
[356693192,1742975364707,-500.0,0.0002064,2]
[356693193,1742975364730,-151.0,0.0002064,2]
[356693194,1742975364752,-511.41027813,0.0002064,2]
[356693195,1742975364774,-528.4356976,0.0002064,2]
[356693196,1742975364796,-151.0,0.0002064,2]
[356693197,1742975364818,-151.0,0.0002064,2]
[356693198,1742975364842,-151.0,0.0002064,2]
[356693199,1742975364863,-151.0,0.0002064,2]
[356693200,1742975364886,-514.33792637,0.0002064,2]
[356693201,1742975364908,-685.59,0.00020643,2]
[356693202,1742975364929,-505.2190647,0.00020673,2]
[356693203,1742975364952,-500.0,0.00020673,2]
[356693204,1742975364976,-464.37,0.00020685,2]
[356693205,1742975364998,-500.0,0.00020685,2]
[356693206,1742975365021,-500.0,0.00020685,2]
[356693207,1742975365045,-500.0,0.00020685,2]
[356693208,1742975365197,-5559.29,0.00020685,2]
[356693209,1742975365220,-500.0,0.00020685,2]
[356693210,1742975365244,-827.61,0.00020685,2]
[356693211,1742975365268,-500.0,0.00020685,2]
[356693212,1742975365289,-11437.82,0.00020685,2]
[356693213,1742975365312,-500.0,0.00020685,2]
[356693214,1742975365335,-1006.79,0.00020685,2]
[356693215,1742975365358,-500.0,0.00020685,2]
[356693216,1742975365382,-500.0,0.00020685,2]
[356693217,1742975365406,-420.0,0.00020708,2]
[356693218,1742975365428,-500.0,0.00020911,2]
[356693219,1742975365449,-151.0,0.00020911,2]
[356693220,1742975365471,-151.0,0.00020911,2]
[356693221,1742975365492,-151.0,0.00020911,2]
[356693222,1742975365514,-151.0,0.00020911,2]
[356693223,1742975365536,-500.0,0.00020913,2]
[356693224,1742975365558,-500.0,0.00020913,2]
[356693225,1742975365579,-218.72289873,0.00020913,2]
[356693226,1742975365600,-500.0,0.00020913,2]
[356693227,1742975365621,-500.0,0.00020913,2]
[356693228,1742975365642,-500.0,0.00020913,2]
[356693229,1742975365663,-585.72,0.00020913,2]
[356693230,1742975365684,-500.0,0.00020913,2]
[356693231,1742975365705,-685.59,0.00020917,2]
[356693232,1742975365730,-1000.0,0.00020947,2]
[356693233,1742975365751,-500.0,0.00020959,2]
[356693234,1742975365781,-500.0,0.00020959,2]
[356693235,1742975365802,-602.3,0.00020959,2]
[356693236,1742975365824,-4210.02761181,0.00020959,2]
[356693237,1742975366147,-1000.0,0.00019547,7]
[356693238,1742975366168,-482.5244,0.00019573,2]
[356693264,1742975432163,-894.78268339,0.00018989,2]
[356693265,1742975432173,-17.4756,0.00019573,2]
[356693266,1742975432184,-500.0,0.00019573,2]
[356693267,1742975432193,-189.63016025,0.00019573,2]
[356693268,1742975432203,-500.0,0.00019589,2]
[356693269,1742975432212,-449.20069521,0.00019589,2]
[356693270,1742975432222,-302.14,0.00019589,2]
[356693271,1742975432231,-1000.0,0.00019821,7]
[356693272,1742975432241,-500.0,0.00019863,2]
[356693273,1742975432250,-151.0,0.00019863,2]
[356693274,1742975432259,-300.0,0.00019899,2]
[356693275,1742975432269,-3133.61771372,0.000199,2]
[356693276,1742975432279,-1941.44943827,0.000199,2]
[356693277,1742975432289,-151.0,0.0002,2]
[356693278,1742975432299,-598.26955793,0.00020095,7]
[356693279,1742975432308,-500.0,0.00020137,2]
[356693280,1742975432318,-160.0,0.00020279,2]
[356693281,1742975432328,-418.40181814,0.00020279,2]
[356693282,1742975432338,-500.0,0.00020411,2]
[356693283,1742975432348,-500.0,0.00020685,2]
[356693284,1742975432357,-1941.44943826,0.00020831,2]
[356693285,1742975432366,-2361.90786629,0.00020873,2]
[356693286,1742975432375,-1349.26238819,0.00020959,2]
[356693287,1742975432385,-500.0,0.00020959,2]
[356693288,1742975432394,-827.61,0.00020959,2]
[356693289,1742975432404,-500.0,0.00020959,2]
[356693290,1742975432413,-11437.82,0.00020959,2]
[356693291,1742975432423,-500.0,0.00020959,2]
[356693292,1742975432433,-1006.79,0.00020959,2]
[356693293,1742975432442,-500.0,0.00020959,2]
[356693294,1742975432451,-454.82,0.00020959,2]
[356693295,1742975432460,-500.0,0.00020959,2]
[356693296,1742975432469,-537.85167297,0.00020973,2]
[356693297,1742975432478,-500.0,0.00020973,2]
[356693298,1742975432487,-500.0,0.00020973,2]
[356693299,1742975432496,-151.0,0.00020973,2]
[356693300,1742975432506,-151.0,0.00021185,2]
[356693301,1742975432515,-500.0,0.00021187,2]
[356693302,1742975432524,-500.0,0.00021187,2]
[356693303,1742975432534,-152.39446,0.00021187,2]
[356693304,1742975432546,-527.58,0.00021187,2]
[356693305,1742975432556,-685.59,0.00021191,2]
[356693306,1742975432565,-500.0,0.00021233,2]
[356693307,1742975432574,-4267.60711818,0.00021233,2]
[356693308,1742975432587,-1291.68288182,0.00021233,2]
[356693309,1742975432596,-500.0,0.00021233,2]
[356693310,1742975432606,-827.61,0.00021233,2]
[356693311,1742975432615,-255.812468,0.00021233,2]
[356693312,1742975432624,-500.0,0.00021233,2]
[356693313,1742975432634,-10221.75082626,0.00021233,2]
[356693314,1742975432645,-1216.06917374,0.00021233,2]
[356693315,1742975432655,-326.87511245,0.00021233,2]
[356693340,1742975440194,-500.0,0.00018999,2]
[356693341,1742975440204,-500.0,0.00019273,2]
[356693342,1742975440214,-279.87,0.00019547,2]
[356693343,1742975440223,-500.0,0.00019589,2]
[356693344,1742975440233,-500.0,0.00019863,2]
[356693345,1742975440243,-500.0,0.00020137,2]
[356693346,1742975440252,-500.0,0.00020411,2]
[356693347,1742975440262,-465.4,0.00020685,2]
[356693348,1742975440272,-500.0,0.00020872,2]
[356693349,1742975440282,-211.12504524,0.00020872,2]
[356693350,1742975440292,-299.21197039,0.00021232,2]
[356693351,1742975440303,-173.12488755,0.00021233,2]
[356693352,1742975440313,-1006.79,0.00021233,2]
[356693353,1742975440323,-500.0,0.00021233,2]
[356693354,1742975440333,-299.0,0.00021233,2]
[356693355,1742975440343,-479.23981131,0.00021413,2]
[356693356,1742975440353,-208.760159,0.00021413,2]
[356693357,1742975440362,-335.21294488,0.00021429,2]
[356693358,1742975440372,-103.76086103,0.00021461,2]
[356693359,1742975440384,-268.10484677,0.00021461,2]
[356693364,1742975443147,-3479.97,0.00019589,2]
[356693366,1742975443226,-457.87,0.00019589,2]
[356693368,1742975443238,-3937.84,0.00019863,2]
[356693370,1742975443251,-953.80283289,0.00020137,2]
[356693492,1742975445950,-935.6255576,0.00020137,2]
[356693495,1742975955039,450.0,0.00014,30]
[356693496,1742976032878,150.0,0.0001,10]
[356693497,1742976432131,-804.64092148,0.0001824,2]
[356693498,1742976432154,-300.0,0.00018514,2]
[356693499,1742976432178,-586.23,0.00018515,2]
[356693500,1742976432201,-713.15,0.00018515,2]
[356693501,1742976432224,-500.0,0.00018515,2]
[356693502,1742976432252,-500.0,0.00018515,2]
[356693503,1742976432274,-500.0,0.00018515,2]
[356693504,1742976432296,-500.0,0.00018515,2]
[356693505,1742976432319,-4174.33,0.00018515,2]
[356693506,1742976432346,-430.13185431,0.00018515,2]
[356693507,1742976432375,-500.0,0.00018515,2]
[356693508,1742976432398,-574.58,0.00018515,2]
[356693509,1742976432423,-3655.46133,0.00018515,2]
[356693510,1742976441164,-2182.44283236,0.00018515,2]
[356693511,1742976444106,-330.87535808,0.00018515,2]
[356693512,1742976554126,-163.55403685,0.00018011,2]
[356693513,1742976554154,-826.4442553,0.00018293,2]
[356693514,1742976554178,-300.0,0.00018514,2]
[356693515,1742976554201,-185.28390701,0.00018515,2]
[356693516,1742976554224,-561.8,0.00018515,2]
[356693517,1742976554246,-166.62070409,0.00018515,2]
[356693518,1742976554267,-683.43,0.00018515,2]
[356693519,1742976554288,-500.0,0.00018515,2]
[356693520,1742976554309,-500.0,0.00018515,2]
[356693521,1742976554331,-500.0,0.00018515,2]
[356693522,1742976554352,-614.2,0.00018515,2]
[356693523,1742976554374,-18731.22047956,0.00018515,2]
[356693524,1742976554398,-2066.66938303,0.00018689,2]
[356693525,1742976554420,-160.0,0.00018783,2]
[356693526,1742976554441,-247.26141699,0.00018783,2]
[356693527,1742976558086,-156.8,0.00018515,2]
[356693538,1742976632034,-1000.0,0.00018504,2]
[356693539,1742976632044,-600.0,0.00018504,2]
[356693540,1742976632054,-343.2,0.00018515,2]
[356693541,1742976632063,-222.44514003,0.00018515,2]
[356693542,1742976632073,-513.50439383,0.00018515,2]
[356693543,1742976632083,-500.0,0.00018515,2]
[356693544,1742976632093,-2284.39063177,0.00018515,2]
[356693545,1742976632105,-1716.00936823,0.00018515,2]
[356693546,1742976632115,-418.40181814,0.00018769,2]
[356693547,1742976632125,-1813.36993698,0.00018787,2]
[356693548,1742976632135,-300.0,0.00018788,2]
[356693549,1742976632145,-359.44489887,0.00018789,2]
[356693550,1742976632154,-500.0,0.00018789,2]
[356693551,1742976632164,-561.8,0.00018789,2]
[356693552,1742976632173,-683.43,0.00018789,2]
[356693553,1742976632183,-500.0,0.00018789,2]
[356693554,1742976632192,-500.0,0.00018789,2]
[356693555,1742976632202,-424.88947941,0.00018789,2]
[356693569,1742976640541,-75.11052059,0.00018789,2]
[356693570,1742976640551,-500.0,0.00018789,2]
[356693571,1742976640561,-500.0,0.00018789,2]
[356693572,1742976640570,-2794.59215783,0.00018789,2]
[356693573,1742976640582,-868.15,0.00018789,2]
[356693574,1742976640594,-337.65784217,0.00018789,2]
[356693575,1742976640603,-15.02415783,0.00018999,2]
[356693579,1742976643842,-527.83584217,0.00018999,2]
[356693580,1742976643851,-500.0,0.00019063,2]
[356693581,1742976643861,-561.8,0.00019063,2]
[356693582,1742976643871,-683.43,0.00019063,2]
[356693583,1742976643881,-500.0,0.00019063,2]
[356693584,1742976643891,-500.0,0.00019063,2]
[356693585,1742976643901,-500.0,0.00019063,2]
[356693586,1742976643910,-271.47537672,0.00019063,2]
[356693587,1742976643920,-500.0,0.00019063,2]
[356693588,1742976643929,-4000.4,0.00019063,2]
[356693589,1742976643939,-500.0,0.00019336,2]
[356693596,1742976644054,-561.8,0.00019336,2]
[356693598,1742976644067,-683.43,0.00019336,2]
[356693600,1742976644077,-500.0,0.00019336,2]
[356693602,1742976644087,-500.0,0.00019336,2]
[356693605,1742976644097,-500.0,0.00019336,2]
[356693606,1742976644106,-42.15515119,0.00019336,2]
[356693609,1742976644122,-457.84484881,0.00019336,2]
[356693610,1742976644132,-281.91811786,0.00019336,2]
[356693620,1742976997984,150.0,2.74e-05,2]
[356693626,1742977638139,-163.55403685,0.00015467,2]
[356693627,1742977638161,-365.6757091,0.00017531,2]
[356693628,1742977638184,-263.7172256,0.00017584,2]
[356693629,1742977638206,-150.0,0.00018184,2]
[356693630,1742977638229,-418.40181814,0.00018344,2]
[356693631,1742977638250,-150.0,0.00018477,2]
[356693632,1742977638272,-33.70897507,0.00018515,2]
[356693633,1742977640130,-160.0,0.00018356,2]
[356693634,1742977640154,-466.29102493,0.00018515,2]
[356693635,1742977640177,-215.35997739,0.00018515,2]
[356693642,1742977750208,-501.11772318,0.000149,2]
[356693643,1742977750230,-300.0,0.00015249,2]
[356693644,1742977750252,-30028.75097276,0.0001525,2]
[356693645,1742977750271,-709.17086216,0.000155,2]
[356693646,1742977750291,-9378.42396914,0.00016,2]
[356693647,1742977750312,-420.0,0.00016685,2]
[356693648,1742977750333,-486.0,0.00018256,2]
[356693649,1742977750354,-284.64002261,0.00018515,2]
[356693650,1742977750378,-500.0,0.00018515,2]
[356693651,1742977750399,-1808.33571009,0.00018533,2]
[356693652,1742977750426,-500.0,0.00018626,2]
[356693653,1742977750449,-500.0,0.00018626,2]
[356693654,1742977750472,-500.0,0.00018626,2]
[356693655,1742977750494,-271.94204848,0.00018626,2]
[356693656,1742977750515,-358.68855146,0.00018626,2]
[356693657,1742977750535,-500.0,0.00018627,2]
[356693658,1742977750555,-500.0,0.00018627,2]
[356693659,1742977750574,-500.0,0.00018627,2]
[356693660,1742977750595,-3488.6,0.00018627,2]
[356693661,1742977750616,-500.0,0.00018627,2]
[356693662,1742977750638,-569.53,0.00018627,2]
[356693663,1742977750659,-500.0,0.00018627,2]
[356693664,1742977750679,-500.0,0.00018627,2]
[356693665,1742977750700,-500.0,0.00018627,2]
[356693666,1742977750722,-24900.0,0.00018628,2]
[356693667,1742977750748,-500.0,0.00018789,2]
[356693668,1742977750797,-500.0,0.00018789,2]
[356693669,1742977750852,-2182.8256889,0.000189,2]
[356693670,1742977750925,-209.44837927,0.000189,2]
[356693671,1742977751180,-500.0,0.00018901,2]
[356693672,1742977751202,-500.0,0.00018901,2]
[356693673,1742977751222,-500.0,0.00018901,2]
[356693674,1742977751241,-3488.6,0.00018901,2]
[356693675,1742977751264,-500.0,0.00018901,2]
[356693676,1742977751286,-569.53,0.00018901,2]
[356693677,1742977751307,-500.0,0.00018901,2]
[356693678,1742977751329,-500.0,0.00018901,2]
[356693679,1742977751350,-500.0,0.00018901,2]
[356693680,1742977751370,-332.56989112,0.0001906,2]
[356693681,1742977751391,-197.0382078,0.00019063,2]
[356693682,1742977751411,-500.0,0.00019063,2]
[356693683,1742977751431,-160.0,0.00019089,2]
[356693684,1742977751451,-178.97925423,0.00019133,2]
[356693685,1742977751470,-511.83050161,0.00019175,2]
[356693686,1742977751490,-500.0,0.00019175,2]
[356693687,1742977751510,-500.0,0.00019175,2]
[356693688,1742977751530,-3488.6,0.00019175,2]
[356693689,1742977751552,-500.0,0.00019175,2]
[356693690,1742977751572,-569.53,0.00019175,2]
[356693691,1742977751593,-500.0,0.00019175,2]
[356693692,1742977751614,-500.0,0.00019175,2]
[356693693,1742977751636,-500.0,0.00019175,2]
[356693694,1742977751659,-500.0,0.00019336,2]
[356693695,1742977751681,-361.82,0.00019439,3]
[356693696,1742977751703,-500.0,0.00019449,2]
[356693697,1742977751723,-500.0,0.00019449,2]
[356693698,1742977751746,-3488.6,0.00019449,2]
[356693699,1742977751768,-500.0,0.00019449,2]
[356693700,1742977751791,-569.53,0.00019449,2]
[356693701,1742977751812,-352.20926686,0.00019449,2]
[356693702,1742977751835,-500.0,0.00019449,2]
[356693703,1742977751856,-500.0,0.00019449,2]
[356693704,1742977751876,-500.0,0.00019449,2]
[356693705,1742977751898,-834.83451184,0.00019503,2]
[356693706,1742977751920,-500.0,0.0001961,2]
[356693707,1742977751957,-500.0,0.00019723,2]
[356693708,1742977751979,-500.0,0.00019723,2]
[356693709,1742977752001,-2383.84908193,0.00019723,2]
[356693717,1742977832347,-418.40181814,0.0001525,2]
[356693718,1742977832357,-2807.84,0.00018627,2]
[356693719,1742977832374,-2807.84,0.00018901,2]
[356693720,1742977832388,-1530.18859179,0.00019175,2]
[356693721,1742977832560,-1277.65140821,0.00019175,2]
[356693722,1742977832571,-2807.84,0.00019449,2]
[356693723,1742977832581,-500.0,0.00019723,2]
[356693724,1742977832591,-569.53,0.00019723,2]
[356693725,1742977832601,-500.0,0.00019723,2]
[356693726,1742977832611,-500.0,0.00019723,2]
[356693727,1742977832621,-2807.84,0.00019723,2]
[356693728,1742977832631,-2182.82568883,0.00019866,2]